[Event "Kadett-SM 2025"]
[Site "Uppsala, Sweden"]
[Date "2025.07.04"]
[Round "6.2"]
[White "Ljungros, Lo"]
[Black "Nagy, Mate"]
[Result "1-0"]
[TimeControl "90 min for 40 move + 30 min with an increment of 30 sec starting move 1"]
[WhiteFideId "1760114"]
[BlackFideId "1758810"]
[WhiteElo "2051"]
[BlackElo "1934"]

1. e4 {[%clk 01:30:54]} {[%emt 00:00:05]} c5 {[%clk 01:30:54]} {[%emt
00:00:06]} 2. c4 {[%clk 01:31:18]} {[%emt 00:00:06]} Nc6 {[%clk 01:31:05]}
{[%emt 00:00:20]} 3. Nc3 {[%clk 01:31:40]} {[%emt 00:00:07]} e5 {[%clk
01:29:43]} {[%emt 00:01:52]} 4. g3 {[%clk 01:32:00]} {[%emt 00:00:10]} g6
{[%clk 01:29:43]} {[%emt 00:00:31]} 5. Bg2 {[%clk 01:32:18]} {[%emt 00:00:11]}
Bg7 {[%clk 01:29:14]} {[%emt 00:00:59]} 6. Nge2 {[%clk 01:32:35]} {[%emt
00:00:13]} d6 {[%clk 01:29:37]} {[%emt 00:00:08]} 7. d3 {[%clk 01:32:09]}
{[%emt 00:00:55]} h5 {[%clk 01:29:00]} {[%emt 00:01:08]} 8. h3 {[%clk
01:32:01]} {[%emt 00:00:37]} h4 {[%clk 01:27:06]} {[%emt 00:02:25]} 9. g4
{[%clk 01:32:00]} {[%emt 00:00:31]} f5 {[%clk 01:23:25]} {[%emt 00:04:11]} 10.
gxf5 {[%clk 01:30:15]} {[%emt 00:02:15]} gxf5 {[%clk 01:23:40]} {[%emt
00:00:15]} 11. f4 {[%clk 01:29:36]} {[%emt 00:01:08]} Be6 {[%clk 01:17:58]}
{[%emt 00:06:13]} 12. Be3 {[%clk 01:17:57]} {[%emt 00:12:07]} Qd7 {[%clk
01:11:43]} {[%emt 00:06:46]} 13. Qa4 {[%clk 01:14:14]} {[%emt 00:04:12]} Nd4
{[%clk 01:09:28]} {[%emt 00:02:47]} 14. Qxd7+ {[%clk 01:12:19]} {[%emt
00:02:24]} Kxd7 {[%clk 01:08:44]} {[%emt 00:01:15]} 15. Bxd4 {[%clk 01:09:14]}
{[%emt 00:03:34]} cxd4 {[%clk 01:08:01]} {[%emt 00:01:14]} 16. exf5 {[%clk
01:05:45]} {[%emt 00:03:58]} Bxf5 {[%clk 01:05:48]} {[%emt 00:02:42]} 17. Ne4
{[%clk 00:59:35]} {[%emt 00:06:41]} Ne7 {[%clk 01:01:37]} {[%emt 00:04:42]} 18.
fxe5 {[%clk 00:58:27]} {[%emt 00:01:37]} Bxe5 {[%clk 01:00:20]} {[%emt
00:01:47]} 19. O-O-O {[%clk 00:57:47]} {[%emt 00:01:10]} Rac8 {[%clk 00:55:33]}
{[%emt 00:05:17]} 20. Kb1 {[%clk 00:53:22]} {[%emt 00:04:55]} d5 {[%clk
00:48:28]} {[%emt 00:07:35]} 21. cxd5 {[%clk 00:52:07]} {[%emt 00:01:45]} Nxd5
{[%clk 00:48:01]} {[%emt 00:00:57]} 22. Rc1 {[%clk 00:52:14]} {[%emt 00:00:23]}
Rxc1+ {[%clk 00:44:06]} {[%emt 00:04:25]} 23. Nxc1 {[%clk 00:48:28]} {[%emt
00:04:16]} b6 {[%clk 00:39:29]} {[%emt 00:05:08]} 24. Nd2 {[%clk 00:45:51]}
{[%emt 00:03:07]} Ne3 {[%clk 00:34:28]} {[%emt 00:05:30]} 25. Be4 {[%clk
00:45:57]} {[%emt 00:00:24]} Be6 {[%clk 00:34:18]} {[%emt 00:00:40]} 26. Nf3
{[%clk 00:45:40]} {[%emt 00:00:47]} Bf6 {[%clk 00:33:39]} {[%emt 00:01:09]} 27.
Ne2 {[%clk 00:44:53]} {[%emt 00:01:16]} Rf8 {[%clk 00:24:00]} {[%emt 00:10:10]}
28. Nfxd4 {[%clk 00:43:06]} {[%emt 00:02:17]} Bxd4 {[%clk 00:23:46]} {[%emt
00:00:44]} 29. Nxd4 {[%clk 00:42:54]} {[%emt 00:00:43]} Bxh3 {[%clk 00:22:53]}
{[%emt 00:01:22]} 30. Kc1 {[%clk 00:15:19]} {[%emt 00:28:05]} Rf1+ {[%clk
00:21:55]} {[%emt 00:01:28]} 31. Rxf1 {[%clk 00:15:27]} {[%emt 00:00:21]} Bxf1
{[%clk 00:19:26]} {[%emt 00:02:59]} 32. Kd2 {[%clk 00:15:34]} {[%emt 00:00:24]}
Ng2 {[%clk 00:17:20]} {[%emt 00:02:36]} 33. Nf3 {[%clk 00:15:42]} {[%emt
00:00:22]} Nf4 {[%clk 00:16:30]} {[%emt 00:01:20]} 34. Nxh4 {[%clk 00:15:59]}
{[%emt 00:00:13]} Ne6 {[%clk 00:15:24]} {[%emt 00:01:36]} 35. Bf5 {[%clk
00:15:29]} {[%emt 00:01:00]} Kd6 {[%clk 00:15:11]} {[%emt 00:00:43]} 36. Ke1
{[%clk 00:15:40]} {[%emt 00:00:18]} 1-0

[Event "Kadett-SM 2025"]
[Site "Uppsala, Sweden"]
[Date "2025.07.04"]
[Round "6.3"]
[White "Berling, Egil"]
[Black "Morell, Oscar"]
[Result "1/2-1/2"]
[TimeControl "90 min for 40 move + 30 min with an increment of 30 sec starting move 1"]
[WhiteFideId "1781197"]
[BlackFideId "1752952"]
[WhiteElo "2004"]
[BlackElo "2001"]

1. d4 {[%clk 01:30:57]} {[%emt 00:00:02]} d5 {[%clk 01:27:03]} {[%emt
00:03:55]} 2. Bf4 {[%clk 01:31:22]} {[%emt 00:00:07]} Nf6 {[%clk 01:26:53]}
{[%emt 00:00:39]} 3. e3 {[%clk 01:31:35]} {[%emt 00:00:18]} c5 {[%clk
01:26:50]} {[%emt 00:00:32]} 4. Nf3 {[%clk 01:32:01]} {[%emt 00:00:04]} Nc6
{[%clk 01:26:26]} {[%emt 00:00:55]} 5. Nbd2 {[%clk 01:32:26]} {[%emt 00:00:05]}
Bf5 {[%clk 01:21:26]} {[%emt 00:05:30]} 6. dxc5 {[%clk 01:32:47]} {[%emt
00:00:10]} Nd7 {[%clk 00:54:05]} {[%emt 00:27:51]} 7. Bb5 {[%clk 01:03:38]}
{[%emt 00:29:38]} Nxc5 {[%clk 00:47:17]} {[%emt 00:07:17]} 8. O-O {[%clk
00:54:34]} {[%emt 00:09:34]} a6 {[%clk 00:39:05]} {[%emt 00:08:44]} 9. Be2
{[%clk 00:42:56]} {[%emt 00:12:07]} e6 {[%clk 00:34:37]} {[%emt 00:04:58]} 10.
Nd4 {[%clk 00:36:20]} {[%emt 00:07:06]} Bg6 {[%clk 00:28:13]} {[%emt 00:06:55]}
11. N2f3 {[%clk 00:33:41]} {[%emt 00:03:08]} Be7 {[%clk 00:26:07]} {[%emt
00:02:35]} 12. c4 {[%clk 00:31:06]} {[%emt 00:03:06]} O-O {[%clk 00:20:12]}
{[%emt 00:06:24]} 13. Rc1 {[%clk 00:30:39]} {[%emt 00:00:58]} Rc8 {[%clk
00:15:37]} {[%emt 00:05:06]} 14. cxd5 {[%clk 00:27:14]} {[%emt 00:03:54]} exd5
{[%clk 00:14:15]} {[%emt 00:01:51]} 15. Nxc6 {[%clk 00:22:18]} {[%emt
00:05:27]} bxc6 {[%clk 00:13:06]} {[%emt 00:01:38]} 16. b4 {[%clk 00:21:42]}
{[%emt 00:01:07]} Ne6 {[%clk 00:10:33]} {[%emt 00:03:04]} 17. Bxa6 {[%clk
00:17:09]} {[%emt 00:05:03]} Ra8 {[%clk 00:11:02]} 18. Bb7 {[%clk 00:14:29]}
{[%emt 00:03:10]} Rxa2 {[%clk 00:10:17]} {[%emt 00:01:16]} 19. Qb3 {[%clk
00:14:16]} {[%emt 00:00:41]} Ra7 {[%clk 00:09:53]} {[%emt 00:00:55]} 20. Bxc6
{[%clk 00:14:34]} {[%emt 00:00:13]} Nxf4 {[%clk 00:07:43]} {[%emt 00:02:40]} 21.
exf4 {[%clk 00:14:56]} {[%emt 00:00:06]} Qb6 {[%clk 00:06:57]} {[%emt
00:01:18]} 22. Bxd5 {[%clk 00:11:50]} {[%emt 00:03:36]} Qxb4 {[%clk 00:07:00]}
{[%emt 00:00:26]} 1/2-1/2

[Event "Kadett-SM 2025"]
[Site "Uppsala, Sweden"]
[Date "2025.07.03"]
[Round "5.1"]
[White "Ljungros, Lo"]
[Black "Nodtveidt, Svante"]
[Result "1/2-1/2"]
[TimeControl "90 min for 40 move + 30 min with an increment of 30 sec starting move 1"]
[WhiteFideId "1760114"]
[BlackFideId "1774450"]
[WhiteElo "2051"]
[BlackElo "1838"]

1. Nf3 {[%clk 01:30:19]} {[%emt 00:00:40]} d5 {[%clk 01:30:55]} {[%emt
00:00:06]} 2. c4 {[%clk 01:30:43]} {[%emt 00:00:06]} e6 {[%clk 01:30:45]}
{[%emt 00:00:40]} 3. e3 {[%clk 01:31:05]} {[%emt 00:00:08]} Nf6 {[%clk
01:30:05]} {[%emt 00:01:11]} 4. b3 {[%clk 01:31:24]} {[%emt 00:00:10]} c5
{[%clk 01:28:11]} {[%emt 00:02:24]} 5. Bb2 {[%clk 01:30:01]} {[%emt 00:01:53]}
Nc6 {[%clk 01:23:22]} {[%emt 00:05:20]} 6. cxd5 {[%clk 01:29:35]} {[%emt
00:00:55]} exd5 {[%clk 01:23:32]} {[%emt 00:00:20]} 7. d4 {[%clk 01:29:22]}
{[%emt 00:00:42]} Be7 {[%clk 01:12:38]} {[%emt 00:11:26]} 8. Be2 {[%clk
01:26:48]} {[%emt 00:03:04]} O-O {[%clk 01:12:39]} {[%emt 00:00:28]} 9. O-O
{[%clk 01:25:04]} {[%emt 00:02:13]} b6 {[%clk 01:09:06]} {[%emt 00:04:05]} 10.
dxc5 {[%clk 01:22:26]} {[%emt 00:03:08]} bxc5 {[%clk 01:08:11]} {[%emt
00:01:24]} 11. Nc3 {[%clk 01:22:13]} {[%emt 00:00:43]} a6 {[%clk 01:05:48]}
{[%emt 00:02:54]} 12. Rc1 {[%clk 01:18:54]} {[%emt 00:03:49]} Be6 {[%clk
00:52:39]} {[%emt 00:13:39]} 13. Na4 {[%clk 01:10:38]} {[%emt 00:08:45]} Nd7
{[%clk 00:52:21]} {[%emt 00:00:47]} 14. Ne1 {[%clk 01:08:09]} {[%emt 00:02:59]}
Qc7 {[%clk 00:45:03]} {[%emt 00:07:48]} 15. Nd3 {[%clk 01:04:55]} {[%emt
00:03:45]} Qa7 {[%clk 00:45:07]} {[%emt 00:00:26]} 16. Nf4 {[%clk 00:53:08]}
{[%emt 00:12:16]} d4 {[%clk 00:43:22]} {[%emt 00:02:15]} 17. Nxe6 {[%clk
00:34:54]} {[%emt 00:18:45]} fxe6 {[%clk 00:43:38]} {[%emt 00:00:13]} 18. Bc4
{[%clk 00:35:00]} {[%emt 00:00:25]} Rf6 {[%clk 00:42:02]} {[%emt 00:02:06]} 19.
exd4 {[%clk 00:30:24]} {[%emt 00:05:06]} cxd4 {[%clk 00:37:25]} {[%emt
00:05:05]} 20. Re1 {[%clk 00:29:26]} {[%emt 00:01:29]} Nf8 {[%clk 00:37:07]}
{[%emt 00:00:48]} 21. Bxe6+ {[%clk 00:28:12]} {[%emt 00:01:45]} Nxe6 {[%clk
00:36:07]} {[%emt 00:01:30]} 22. Rxc6 {[%clk 00:28:26]} {[%emt 00:00:17]} Qd7
{[%clk 00:30:48]} {[%emt 00:05:47]} 23. Rc2 {[%clk 00:20:55]} {[%emt 00:08:02]}
Raf8 {[%clk 00:29:57]} {[%emt 00:01:21]} 24. Nb6 {[%clk 00:19:40]} {[%emt
00:01:45]} Qb7 {[%clk 00:20:01]} {[%emt 00:10:26]} 25. Nc4 {[%clk 00:19:46]}
{[%emt 00:00:24]} Rg6 {[%clk 00:19:36]} {[%emt 00:00:55]} 26. f3 {[%clk
00:15:21]} {[%emt 00:04:55]} Bb4 {[%clk 00:10:31]} {[%emt 00:09:36]} 27. Rf1
{[%clk 00:14:18]} {[%emt 00:01:32]} Nf4 {[%clk 00:06:57]} {[%emt 00:04:05]} 28.
Qxd4 {[%clk 00:09:58]} {[%emt 00:04:50]} Qc7 {[%clk 00:06:53]} {[%emt
00:00:34]} 29. Ne3 {[%clk 00:06:54]} {[%emt 00:03:33]} Qxc2 {[%clk 00:06:33]}
{[%emt 00:00:50]} 30. Nxc2 {[%clk 00:06:56]} {[%emt 00:00:27]} Ne2+ {[%clk
00:06:35]} {[%emt 00:00:28]} 31. Kf2 {[%clk 00:07:16]} {[%emt 00:00:10]} Nxd4
{[%clk 00:06:54]} {[%emt 00:00:11]} 32. Bxd4 {[%clk 00:03:07]} {[%emt
00:04:39]} Bd6 {[%clk 00:06:35]} {[%emt 00:00:50]} 33. g3 {[%clk 00:02:25]}
{[%emt 00:01:13]} Rc8 {[%clk 00:05:56]} {[%emt 00:01:09]} 34. Ne3 {[%clk
00:02:14]} {[%emt 00:00:40]} Re6 {[%clk 00:06:10]} {[%emt 00:00:15]} 35. Rd1
{[%clk 00:01:17]} {[%emt 00:01:28]} Bb4 {[%clk 00:03:01]} {[%emt 00:03:40]} 36.
Rd3 {[%clk 00:00:31]} {[%emt 00:01:16]} 1/2-1/2

[Event "Kadett-SM 2025"]
[Site "Uppsala, Sweden"]
[Date "2025.07.03"]
[Round "5.2"]
[White "Malmquist, Neo"]
[Black "Dingertz, Filip"]
[Result "0-1"]
[TimeControl "90 min for 40 move + 30 min with an increment of 30 sec starting move 1"]
[WhiteFideId "1774387"]
[BlackFideId "1757288"]
[WhiteElo "1998"]
[BlackElo "2043"]

1. e4 {[%clk 01:30:54]} {[%emt 00:00:04]} e5 {[%clk 01:30:39]} {[%emt
00:00:22]} 2. Nf3 {[%clk 01:31:18]} {[%emt 00:00:06]} Nc6 {[%clk 01:31:07]}
{[%emt 00:00:03]} 3. Bb5 {[%clk 01:31:39]} {[%emt 00:00:08]} a6 {[%clk
01:31:34]} {[%emt 00:00:04]} 4. Ba4 {[%clk 01:32:04]} {[%emt 00:00:05]} Nf6
{[%clk 01:32:02]} {[%emt 00:00:03]} 5. d3 {[%clk 01:32:24]} {[%emt 00:00:08]}
b5 {[%clk 01:32:14]} {[%emt 00:00:18]} 6. Bb3 {[%clk 01:32:50]} {[%emt
00:00:05]} Bc5 {[%clk 01:32:40]} {[%emt 00:00:04]} 7. Nc3 {[%clk 01:33:03]}
{[%emt 00:00:16]} O-O {[%clk 01:27:28]} {[%emt 00:05:43]} 8. Nd5 {[%clk
01:33:20]} {[%emt 00:00:13]} Nxd5 {[%clk 01:22:47]} {[%emt 00:05:11]} 9. Bxd5
{[%clk 01:32:52]} {[%emt 00:00:57]} Rb8 {[%clk 01:22:13]} {[%emt 00:01:05]} 10.
c3 {[%clk 01:33:01]} {[%emt 00:00:20]} Ne7 {[%clk 01:17:37]} {[%emt 00:05:06]}
11. Nxe5 {[%clk 01:21:13]} {[%emt 00:12:17]} Nxd5 {[%clk 01:14:28]} {[%emt
00:03:40]} 12. exd5 {[%clk 01:21:26]} {[%emt 00:00:18]} Re8 {[%clk 01:14:37]}
{[%emt 00:00:21]} 13. d4 {[%clk 01:21:04]} {[%emt 00:00:51]} Bd6 {[%clk
01:14:13]} {[%emt 00:00:55]} 14. O-O {[%clk 01:20:34]} {[%emt 00:00:59]} Bb7
{[%clk 01:06:19]} {[%emt 00:08:24]} 15. Bf4 {[%clk 01:02:56]} {[%emt 00:18:08]}
Bxd5 {[%clk 01:03:53]} {[%emt 00:02:56]} 16. Nd3 {[%clk 01:03:01]} {[%emt
00:00:25]} Bf8 {[%clk 00:53:19]} {[%emt 00:11:05]} 17. Re1 {[%clk 00:55:56]}
{[%emt 00:07:34]} d6 {[%clk 00:50:39]} {[%emt 00:03:10]} 18. Qc2 {[%clk
00:49:54]} {[%emt 00:06:32]} Qf6 {[%clk 00:50:07]} {[%emt 00:01:03]} 19. Bg3
{[%clk 00:47:36]} {[%emt 00:02:46]} Qf5 {[%clk 00:46:52]} {[%emt 00:03:45]} 20.
f3 {[%clk 00:41:37]} {[%emt 00:06:31]} a5 {[%clk 00:43:35]} {[%emt 00:03:47]}
21. Nb4 {[%clk 00:38:43]} {[%emt 00:03:23]} Qxc2 {[%clk 00:41:04]} {[%emt
00:03:01]} 22. Nxc2 {[%clk 00:38:48]} {[%emt 00:00:25]} Rxe1+ {[%clk 00:41:22]}
{[%emt 00:00:13]} 23. Bxe1 {[%clk 00:38:55]} {[%emt 00:00:23]} a4 {[%clk
00:34:13]} {[%emt 00:07:39]} 24. Ne3 {[%clk 00:34:36]} {[%emt 00:04:48]} Bc4
{[%clk 00:34:37]} {[%emt 00:00:07]} 25. a3 {[%clk 00:31:22]} {[%emt 00:03:44]}
Re8 {[%clk 00:31:56]} {[%emt 00:03:11]} 26. Kf2 {[%clk 00:28:50]} {[%emt
00:03:01]} g6 {[%clk 00:30:13]} {[%emt 00:02:14]} 27. Bd2 {[%clk 00:27:04]}
{[%emt 00:02:15]} f5 {[%clk 00:29:38]} {[%emt 00:01:06]} 28. Re1 {[%clk
00:26:26]} {[%emt 00:01:07]} Bb3 {[%clk 00:30:01]} {[%emt 00:00:08]} 29. Nf1
{[%clk 00:20:11]} {[%emt 00:06:45]} Rxe1 {[%clk 00:28:46]} {[%emt 00:01:45]} 30.
Bxe1 {[%clk 00:16:56]} {[%emt 00:03:45]} Kf7 {[%clk 00:26:39]} {[%emt
00:02:36]} 31. f4 {[%clk 00:13:41]} {[%emt 00:03:45]} Ke6 {[%clk 00:25:25]}
{[%emt 00:01:44]} 32. Ne3 {[%clk 00:11:23]} {[%emt 00:02:48]} Bh6 {[%clk
00:22:33]} {[%emt 00:03:21]} 33. Nf1 {[%clk 00:05:21]} {[%emt 00:06:32]} Bxf4
{[%clk 00:22:12]} {[%emt 00:00:51]} 34. Bd2 {[%clk 00:05:39]} {[%emt 00:00:13]}
Bxd2 {[%clk 00:21:48]} {[%emt 00:00:54]} 35. Nxd2 {[%clk 00:06:07]} g5 {[%clk
00:19:20]} {[%emt 00:02:58]} 36. g3 {[%clk 00:06:24]} {[%emt 00:00:13]} f4
{[%clk 00:18:33]} {[%emt 00:01:18]} 37. h4 {[%clk 00:04:09]} {[%emt 00:02:45]}
gxh4 {[%clk 00:17:32]} {[%emt 00:01:31]} 38. gxf4 {[%clk 00:01:50]} {[%emt
00:02:48]} Kf5 {[%clk 00:17:51]} {[%emt 00:00:11]} 39. Nf3 {[%clk 00:01:57]}
{[%emt 00:00:23]} Kxf4 {[%clk 00:17:51]} {[%emt 00:00:31]} 40. Nxh4 {[%clk
00:02:25]} {[%emt 00:00:02]} Bd5 {[%clk 00:18:10]} {[%emt 00:00:10]} 0-1

[Event "Kadett-SM 2025"]
[Site "Uppsala, Sweden"]
[Date "2025.07.03"]
[Round "5.4"]
[White "Nagy, Mate"]
[Black "Strand, Sixten"]
[Result "1-0"]
[TimeControl "90 min for 40 move + 30 min with an increment of 30 sec starting move 1"]
[WhiteFideId "1758810"]
[BlackFideId "1784137"]
[WhiteElo "1934"]
[BlackElo "1981"]

1. e4 {[%clk 01:30:55]} {[%emt 00:00:04]} c5 {[%clk 01:30:56]} {[%emt
00:00:05]} 2. Nf3 {[%clk 01:31:18]} {[%emt 00:00:07]} d6 {[%clk 01:31:20]}
{[%emt 00:00:05]} 3. d4 {[%clk 01:31:35]} {[%emt 00:00:13]} cxd4 {[%clk
01:31:45]} {[%emt 00:00:05]} 4. Nxd4 {[%clk 01:32:02]} {[%emt 00:00:03]} Nf6
{[%clk 01:32:08]} {[%emt 00:00:06]} 5. Nc3 {[%clk 01:32:27]} {[%emt 00:00:05]}
Nc6 {[%clk 01:32:34]} {[%emt 00:00:04]} 6. Nf3 {[%clk 01:32:21]} {[%emt
00:00:37]} g6 {[%clk 01:31:56]} {[%emt 00:01:08]} 7. e5 {[%clk 01:31:38]}
{[%emt 00:01:13]} dxe5 {[%clk 01:29:00]} {[%emt 00:03:26]} 8. Qxd8+ {[%clk
01:31:06]} {[%emt 00:01:01]} Nxd8 {[%clk 01:25:51]} {[%emt 00:03:39]} 9. Nb5
{[%clk 01:21:21]} {[%emt 00:10:16]} Ne6 {[%clk 01:22:05]} {[%emt 00:04:16]} 10.
Bc4 {[%clk 01:13:14]} {[%emt 00:08:37]} a6 {[%clk 01:20:26]} {[%emt 00:02:09]}
11. Bxe6 {[%clk 01:12:19]} {[%emt 00:01:25]} axb5 {[%clk 01:20:48]} {[%emt
00:00:08]} 12. Bb3 {[%clk 01:12:27]} {[%emt 00:00:22]} Nd7 {[%clk 01:14:50]}
{[%emt 00:06:28]} 13. Be3 {[%clk 01:11:28]} {[%emt 00:01:28]} Bg7 {[%clk
01:03:35]} {[%emt 00:11:45]} 14. Ng5 {[%clk 01:03:48]} {[%emt 00:08:10]} e6
{[%clk 00:53:39]} {[%emt 00:10:27]} 15. Ne4 {[%clk 00:57:48]} {[%emt 00:06:30]}
Bf8 {[%clk 00:36:47]} {[%emt 00:17:21]} 16. O-O-O {[%clk 00:57:02]} {[%emt
00:01:15]} b6 {[%clk 00:29:30]} {[%emt 00:07:49]} 17. Rd2 {[%clk 00:40:37]}
{[%emt 00:16:55]} Bb7 {[%clk 00:24:07]} {[%emt 00:05:54]} 18. Rhd1 {[%clk
00:33:10]} {[%emt 00:07:56]} Bxe4 {[%clk 00:16:31]} {[%emt 00:08:05]} 19. Rxd7
{[%clk 00:33:30]} {[%emt 00:00:10]} Bc6 {[%clk 00:15:34]} {[%emt 00:01:27]} 20.
Rc7 {[%clk 00:31:15]} {[%emt 00:02:46]} Bxg2 {[%clk 00:15:21]} {[%emt
00:00:43]} 21. Rdd7 {[%clk 00:28:39]} {[%emt 00:03:05]} Rc8 {[%clk 00:13:36]}
{[%emt 00:02:16]} 22. Bg5 {[%clk 00:24:45]} {[%emt 00:04:23]} Bc6 {[%clk
00:08:42]} {[%emt 00:05:24]} 23. Rd3 {[%clk 00:20:12]} {[%emt 00:05:04]} Rb8
{[%clk 00:05:19]} {[%emt 00:03:53]} 24. Rxc6 {[%clk 00:20:09]} {[%emt
00:00:32]} Bc5 {[%clk 00:04:39]} {[%emt 00:01:10]} 25. Be3 {[%clk 00:17:07]}
{[%emt 00:03:32]} e4 {[%clk 00:04:38]} {[%emt 00:00:31]} 26. Rd2 {[%clk
00:16:27]} {[%emt 00:01:10]} Bxe3 {[%clk 00:03:49]} {[%emt 00:01:19]} 27. fxe3
{[%clk 00:16:52]} {[%emt 00:00:05]} Ke7 {[%clk 00:03:45]} {[%emt 00:00:35]} 28.
Rc7+ {[%clk 00:17:05]} {[%emt 00:00:17]} Kf6 {[%clk 00:03:51]} {[%emt
00:00:24]} 29. Rf2+ {[%clk 00:17:28]} {[%emt 00:00:06]} Kg5 {[%emt 00:00:25]}
30. Rcxf7 {[%clk 00:17:33]} {[%emt 00:00:20]} Rbe8 {[%clk 00:03:40]} {[%emt
00:00:51]} 31. R7f4 {[%clk 00:17:17]} {[%emt 00:00:46]} h5 {[%clk 00:03:04]}
{[%emt 00:01:05]} 32. h4+ {[%emt 00:00:22]} Kh6 {[%clk 00:03:27]} {[%emt
00:00:07]} 33. Rxe4 {[%clk 00:17:35]} {[%emt 00:00:22]} e5 {[%clk 00:02:38]}
{[%emt 00:01:19]} 34. Rb4 {[%clk 00:17:02]} {[%emt 00:01:02]} Rhf8 {[%clk
00:02:47]} {[%emt 00:00:22]} 35. Rxf8 {[%clk 00:17:22]} {[%emt 00:00:09]} Rxf8
{[%clk 00:03:13]} {[%emt 00:00:04]} 36. Rxb5 {[%clk 00:17:25]} {[%emt
00:00:27]} Rf1+ {[%clk 00:03:33]} {[%emt 00:00:10]} 37. Kd2 {[%clk 00:17:32]}
{[%emt 00:00:24]} Rh1 {[%clk 00:03:55]} {[%emt 00:00:07]} 38. Rxb6 {[%clk
00:17:02]} {[%emt 00:01:00]} Rxh4 {[%clk 00:04:16]} {[%emt 00:00:09]} 39. a4
{[%clk 00:16:39]} {[%emt 00:00:53]} Rh2+ {[%clk 00:04:25]} {[%emt 00:00:22]} 40.
Kc3 {[%clk 00:16:39]} {[%emt 00:00:29]} h4 {[%clk 00:04:43]} {[%emt 00:00:12]}
41. a5 {[%clk 00:16:47]} {[%emt 00:00:23]} Rg2 {[%clk 00:03:28]} {[%emt
00:01:44]} 42. Be6 {[%clk 00:16:19]} {[%emt 00:00:58]} Rg1 {[%clk 00:03:14]}
{[%emt 00:00:45]} 43. a6 {[%clk 00:16:35]} {[%emt 00:00:14]} Ra1 {[%clk
00:03:32]} {[%emt 00:00:11]} 44. Bf5 {[%clk 00:16:04]} {[%emt 00:01:01]} Kg5
{[%clk 00:03:07]} {[%emt 00:00:55]} 45. Bxg6 {[%clk 00:16:02]} {[%emt
00:00:32]} h3 {[%clk 00:03:14]} {[%emt 00:00:23]} 46. Be4 {[%clk 00:16:10]}
{[%emt 00:00:21]} Ra4 {[%clk 00:03:06]} {[%emt 00:00:39]} 47. b4 {[%clk
00:16:10]} {[%emt 00:00:31]} h2 {[%clk 00:03:13]} {[%emt 00:00:22]} 48. Rg6+
{[%clk 00:16:04]} {[%emt 00:00:36]} Kh5 {[%clk 00:03:29]} {[%emt 00:00:14]} 49.
Rg7 {[%clk 00:15:50]} {[%emt 00:00:45]} 1-0